fUST/lending_fUST_20250316
["ID","MTS","AMOUNT","RATE_DAILY","PERIOD"]
[356219149,1742087435475,-500.0,8.493e-05,2]
[356219150,1742087435486,-1283.2,8.493e-05,2]
[356219151,1742087435499,-617.68,8.493e-05,2]
[356219152,1742087435510,-500.0,8.493e-05,2]
[356219153,1742087435520,-220.83,8.493e-05,2]
[356219154,1742087435529,-1827.95,8.493e-05,2]
[356219155,1742087435540,-4050.31,8.493e-05,2]
[356219156,1742087435550,-1693.82,8.493e-05,2]
[356219157,1742087435559,-500.0,8.493e-05,2]
[356219158,1742087435570,-852.23,8.493e-05,2]
[356219159,1742087435579,-997.62,8.493e-05,2]
[356219160,1742087435588,-619.17,8.493e-05,2]
[356219161,1742087435598,-500.0,8.493e-05,2]
[356219162,1742087435607,-500.0,8.493e-05,2]
[356219163,1742087435616,-500.0,8.493e-05,2]
[356219164,1742087435626,-500.0,8.493e-05,2]
[356219165,1742087435635,-500.0,8.493e-05,2]
[356219166,1742087435644,-57076.75,8.493e-05,2]
[356219167,1742087435654,-500.0,8.493e-05,2]
[356219168,1742087435663,-500.0,8.493e-05,2]
[356219169,1742087435672,-1429.82,8.493e-05,2]
[356219170,1742087435681,-500.0,8.493e-05,2]
[356219171,1742087435691,-3461.53,8.493e-05,2]
[356219172,1742087435700,-500.0,8.493e-05,2]
[356219173,1742087435710,-500.0,8.493e-05,2]
[356219174,1742087435719,-1621.24,8.493e-05,2]
[356219175,1742087435728,-500.0,8.493e-05,2]
[356219176,1742087435737,-2212.72,8.493e-05,2]
[356219177,1742087435747,-3000.71,8.493e-05,2]
[356219178,1742087435758,-500.0,8.493e-05,2]
[356219179,1742087435767,-798.05,8.493e-05,2]
[356219180,1742087435776,-500.0,8.493e-05,2]
[356219181,1742087435785,-1579.72,8.493e-05,2]
[356219182,1742087435794,-500.0,8.493e-05,2]
[356219183,1742087435803,-625.37,8.493e-05,2]
[356219184,1742087435813,-766.67,8.493e-05,2]
[356219185,1742087435823,-500.0,8.493e-05,2]
[356219186,1742087435832,-548.17,8.493e-05,2]
[356219187,1742087435841,-696.66,8.493e-05,2]
[356219188,1742087435851,-500.0,8.493e-05,2]
[356219189,1742087435860,-609.58,8.493e-05,2]
[356219190,1742087435869,-734.82,8.493e-05,2]
[356219191,1742087435879,-834.96754831,8.625e-05,2]
[356219192,1742087435889,-169.89604242,8.63e-05,2]
[356219193,1742087435898,-153.0,8.63e-05,2]
[356219194,1742087435907,-153.0,8.63e-05,2]
[356219195,1742087435917,-153.0,8.63e-05,2]
[356219196,1742087435926,-153.0,8.64e-05,2]
[356219197,1742087435936,-153.0,8.64e-05,2]
[356219198,1742087435945,-153.0,8.64e-05,2]
[356219199,1742087435955,-153.0,8.64e-05,2]
[356219200,1742087435964,-153.0,8.64e-05,2]
[356219201,1742087435973,-155.2612298,8.76e-05,2]
[356219202,1742087435984,-153.0,8.76e-05,2]
[356219203,1742087435993,-308.66,8.767e-05,2]
[356219204,1742087436003,-500.0,8.767e-05,2]
[356219205,1742087436012,-500.0,8.767e-05,2]
[356219206,1742087436022,-500.0,8.767e-05,2]
[356219207,1742087436031,-500.0,8.767e-05,2]
[356219208,1742087436040,-620.01,8.767e-05,2]
[356219209,1742087436049,-566.68,8.767e-05,2]
[356219210,1742087436060,-500.0,8.767e-05,2]
[356219211,1742087436069,-500.0,8.767e-05,2]
[356219212,1742087436079,-500.0,8.767e-05,2]
[356219213,1742087436089,-500.0,8.767e-05,2]
[356219214,1742087436099,-500.0,8.767e-05,2]
[356219215,1742087436108,-500.0,8.767e-05,2]
[356219216,1742087436118,-500.0,8.767e-05,2]
[356219217,1742087436128,-179.89370592,8.767e-05,2]
[356219218,1742087436138,-500.0,8.767e-05,2]
[356219219,1742087436148,-169.89604242,8.767e-05,2]
[356219220,1742087436158,-500.0,8.767e-05,2]
[356219221,1742087436169,-3666.2,8.767e-05,2]
[356219222,1742087436179,-3114.38,8.767e-05,2]
[356219223,1742087436189,-500.0,8.767e-05,2]
[356219224,1742087436200,-500.0,8.767e-05,2]
[356219225,1742087436210,-1125.76,8.767e-05,2]
[356219226,1742087436219,-500.0,8.767e-05,2]
[356219227,1742087436230,-500.0,8.767e-05,2]
[356219228,1742087436239,-500.0,8.767e-05,2]
[356219229,1742087436248,-2933.46,8.767e-05,2]
[356219230,1742087436259,-810.85,8.767e-05,2]
[356219231,1742087436269,-594.52,8.767e-05,2]
[356219232,1742087436279,-500.0,8.767e-05,2]
[356219233,1742087436288,-1283.2,8.767e-05,2]
[356219234,1742087436298,-617.68,8.767e-05,2]
[356219235,1742087436308,-500.0,8.767e-05,2]
[356219236,1742087436317,-1827.95,8.767e-05,2]
[356219237,1742087436327,-4050.31,8.767e-05,2]
[356219238,1742087436337,-1693.82,8.767e-05,2]
[356219239,1742087436347,-500.0,8.767e-05,2]
[356219240,1742087436358,-852.23,8.767e-05,2]
[356219241,1742087436368,-997.62,8.767e-05,2]
[356219242,1742087436377,-619.17,8.767e-05,2]
[356219243,1742087436387,-323.05,8.767e-05,2]
[356219244,1742087436397,-500.0,8.767e-05,2]
[356219245,1742087436407,-500.0,8.767e-05,2]
[356219246,1742087436416,-500.0,8.767e-05,2]
[356219247,1742087436426,-500.0,8.767e-05,2]
[356219248,1742087436436,-57076.75,8.767e-05,2]
[356219249,1742087436445,-500.0,8.767e-05,2]
[356219250,1742087436455,-500.0,8.767e-05,2]
[356219251,1742087436465,-1429.82,8.767e-05,2]
[356219252,1742087436474,-3461.53,8.767e-05,2]
[356219253,1742087436484,-335.70140861,8.767e-05,2]
[356219254,1742087436495,-500.0,8.767e-05,2]
[356219255,1742087436506,-1621.24,8.767e-05,2]
[356219256,1742087436515,-500.0,8.767e-05,2]
[356219257,1742087436525,-2212.72,8.767e-05,2]
[356219258,1742087436536,-3000.71,8.767e-05,2]
[356219259,1742087436546,-500.0,8.767e-05,2]
[356219260,1742087436555,-798.05,8.767e-05,2]
[356219261,1742087436566,-500.0,8.767e-05,2]
[356219262,1742087436578,-1579.72,8.767e-05,2]
[356219263,1742087436588,-500.0,8.767e-05,2]
[356219264,1742087436599,-625.37,8.767e-05,2]
[356219265,1742087436610,-766.67,8.767e-05,2]
[356219266,1742087436619,-503.64,8.767e-05,2]
[356219267,1742087436628,-548.17,8.767e-05,2]
[356219268,1742087436638,-696.66,8.767e-05,2]
[356219269,1742087436647,-500.0,8.767e-05,2]
[356219270,1742087436656,-609.58,8.767e-05,2]
[356219271,1742087436666,-734.82,8.767e-05,2]
[356219272,1742087436675,-484.87364838,9.011e-05,2]
[356219273,1742087436685,-834.96754831,9.037e-05,2]
[356219274,1742087436695,-420.0,9.04e-05,2]
[356219275,1742087436704,-500.0,9.041e-05,2]
[356219276,1742087436714,-500.0,9.041e-05,2]
[356219277,1742087436723,-500.0,9.041e-05,2]
[356219278,1742087436734,-500.0,9.041e-05,2]
[356219279,1742087436743,-620.01,9.041e-05,2]
[356219280,1742087436753,-500.0,9.041e-05,2]
[356219281,1742087436762,-500.0,9.041e-05,2]
[356219282,1742087436772,-500.0,9.041e-05,2]
[356219283,1742087436782,-500.0,9.041e-05,2]
[356219284,1742087436791,-500.0,9.041e-05,2]
[356219285,1742087436801,-500.0,9.041e-05,2]
[356219286,1742087436811,-500.0,9.041e-05,2]
[356219287,1742087436820,-500.0,9.041e-05,2]
[356219288,1742087436829,-269.0,9.041e-05,2]
[356219289,1742087436839,-3666.2,9.041e-05,2]
[356219290,1742087436848,-3114.38,9.041e-05,2]
[356219291,1742087436858,-523.67566521,9.041e-05,2]
[356219292,1742087436867,-500.0,9.041e-05,2]
[356219293,1742087436876,-1125.76,9.041e-05,2]
[356219294,1742087436886,-500.0,9.041e-05,2]
[356219295,1742087436896,-500.0,9.041e-05,2]
[356219296,1742087436905,-500.0,9.041e-05,2]
[356219297,1742087436915,-2933.46,9.041e-05,2]
[356219298,1742087436924,-810.85,9.041e-05,2]
[356219299,1742087436934,-594.52,9.041e-05,2]
[356219300,1742087436944,-500.0,9.041e-05,2]
[356219301,1742087436953,-1283.2,9.041e-05,2]
[356219302,1742087436963,-617.68,9.041e-05,2]
[356219303,1742087436974,-500.0,9.041e-05,2]
[356219304,1742087436984,-1827.95,9.041e-05,2]
[356219305,1742087436994,-4050.31,9.041e-05,2]
[356219306,1742087437004,-500.0,9.041e-05,2]
[356219307,1742087437014,-150.35,9.041e-05,2]
[356219308,1742087437024,-1693.82,9.041e-05,2]
[356219309,1742087437034,-500.0,9.041e-05,2]
[356219310,1742087437043,-852.23,9.041e-05,2]
[356219311,1742087437053,-997.62,9.041e-05,2]
[356219312,1742087437062,-619.17,9.041e-05,2]
[356219313,1742087437072,-500.0,9.041e-05,2]
[356219314,1742087437082,-500.0,9.041e-05,2]
[356219315,1742087437092,-500.0,9.041e-05,2]
[356219316,1742087437102,-500.0,9.041e-05,2]
[356219317,1742087437111,-57076.75,9.041e-05,2]
[356219318,1742087437120,-500.0,9.041e-05,2]
[356219319,1742087437130,-365.7801,9.041e-05,2]
[356219320,1742087437139,-1429.82,9.041e-05,2]
[356219321,1742087437148,-3461.53,9.041e-05,2]
[356219322,1742087437158,-500.0,9.041e-05,2]
[356219323,1742087437167,-1621.24,9.041e-05,2]
[356219324,1742087437176,-500.0,9.041e-05,2]
[356219325,1742087437186,-2212.72,9.041e-05,2]
[356219326,1742087437195,-3000.71,9.041e-05,2]
[356219327,1742087437206,-463.31,9.041e-05,2]
[356219328,1742087437216,-798.05,9.041e-05,2]
[356219329,1742087437226,-500.0,9.041e-05,2]
[356219330,1742087437235,-1579.72,9.041e-05,2]
[356219331,1742087437244,-500.0,9.041e-05,2]
[356219332,1742087437254,-625.37,9.041e-05,2]
[356219333,1742087437264,-766.67,9.041e-05,2]
[356219334,1742087437273,-548.17,9.041e-05,2]
[356219335,1742087437283,-696.66,9.041e-05,2]
[356219336,1742087437293,-441.99,9.041e-05,2]
[356219337,1742087437302,-609.58,9.041e-05,2]
[356219338,1742087437311,-734.82,9.041e-05,2]
[356219339,1742087437321,-153.0,9.041e-05,2]
[356219340,1742087437330,-500.0,9.068e-05,2]
[356219341,1742087437339,-150.35,9.068e-05,2]
[356219342,1742087437349,-1200.0,9.069e-05,2]
[356219343,1742087437358,-500.0,9.096e-05,2]
[356219344,1742087437367,-150.35,9.096e-05,2]
[356219345,1742087437377,-1912.0,9.108e-05,2]
[356219346,1742087437387,-540.0,9.108e-05,2]
[356219347,1742087437396,-399.0,9.108e-05,2]
[356219348,1742087437406,-500.0,9.123e-05,2]
[356219349,1742087437415,-150.35,9.123e-05,2]
[356219350,1742087437424,-153.0,9.123e-05,2]
[356219351,1742087437433,-153.0,9.123e-05,2]
[356219352,1742087437443,-500.0,9.151e-05,2]
[356219353,1742087437452,-150.35,9.151e-05,2]
[356219354,1742087437461,-500.0,9.178e-05,2]
[356219355,1742087437471,-248.25,9.178e-05,2]
[356219356,1742087437480,-500.0,9.205e-05,2]
[356219357,1742087437491,-848.0,9.233e-05,2]
[356219358,1742087437502,-834.96754831,9.294e-05,2]
[356219359,1742087437512,-500.0,9.315e-05,2]
[356219360,1742087437521,-500.0,9.315e-05,2]
[356219361,1742087437530,-500.0,9.315e-05,2]
[356219362,1742087437542,-500.0,9.315e-05,2]
[356219363,1742087437551,-620.01,9.315e-05,2]
[356219364,1742087437561,-500.0,9.315e-05,2]
[356219365,1742087437572,-500.0,9.315e-05,2]
[356219366,1742087437582,-500.0,9.315e-05,2]
[356219367,1742087437591,-500.0,9.315e-05,2]
[356219368,1742087437601,-500.0,9.315e-05,2]
[356219369,1742087437611,-500.0,9.315e-05,2]
[356219370,1742087437620,-500.0,9.315e-05,2]
[356219371,1742087437629,-500.0,9.315e-05,2]
[356219372,1742087437638,-3666.2,9.315e-05,2]
[356219373,1742087437647,-3114.38,9.315e-05,2]
[356219374,1742087437657,-500.0,9.315e-05,2]
[356219375,1742087437667,-1125.76,9.315e-05,2]
[356219376,1742087437676,-500.0,9.315e-05,2]
[356219377,1742087437686,-500.0,9.315e-05,2]
[356219378,1742087437694,-500.0,9.315e-05,2]
[356219379,1742087437702,-2933.46,9.315e-05,2]
[356219380,1742087437712,-810.85,9.315e-05,2]
[356219381,1742087437722,-594.52,9.315e-05,2]
[356219382,1742087437731,-500.0,9.315e-05,2]
[356219383,1742087437741,-1283.2,9.315e-05,2]
[356219384,1742087437750,-617.68,9.315e-05,2]
[356219385,1742087437759,-500.0,9.315e-05,2]
[356219386,1742087437768,-1827.95,9.315e-05,2]
[356219387,1742087437778,-4050.31,9.315e-05,2]
[356219388,1742087437787,-1693.82,9.315e-05,2]
[356219389,1742087437797,-500.0,9.315e-05,2]
[356219390,1742087437806,-852.23,9.315e-05,2]
[356219391,1742087437816,-997.62,9.315e-05,2]
[356219392,1742087437825,-619.17,9.315e-05,2]
[356219393,1742087437835,-500.0,9.315e-05,2]
[356219394,1742087437844,-500.0,9.315e-05,2]
[356219395,1742087437854,-500.0,9.315e-05,2]
[356219396,1742087437864,-57076.75,9.315e-05,2]
[356219397,1742087437873,-500.0,9.315e-05,2]
[356219398,1742087437883,-500.0,9.315e-05,2]
[356219399,1742087437892,-1429.82,9.315e-05,2]
[356219400,1742087437900,-3461.53,9.315e-05,2]
[356219401,1742087437908,-500.0,9.315e-05,2]
[356219402,1742087437918,-1621.24,9.315e-05,2]
[356219403,1742087437927,-500.0,9.315e-05,2]
[356219404,1742087437937,-2212.72,9.315e-05,2]
[356219405,1742087437946,-3000.71,9.315e-05,2]
[356219406,1742087437955,-798.05,9.315e-05,2]
[356219407,1742087437964,-259.55,9.315e-05,2]
[356219408,1742087437974,-1579.72,9.315e-05,2]
[356219409,1742087437983,-500.0,9.315e-05,2]
[356219410,1742087437992,-625.37,9.315e-05,2]
[356219411,1742087438002,-766.67,9.315e-05,2]
[356219412,1742087438011,-548.17,9.315e-05,2]
[356219414,1742087438021,-696.66,9.315e-05,2]
[356219415,1742087438030,-609.58,9.315e-05,2]
[356219416,1742087438040,-734.82,9.315e-05,2]
[356219417,1742087438049,-465.99368242,9.461e-05,2]
[356219418,1742087438058,-834.96754831,9.499e-05,2]
[356219419,1742087438068,-160.0,9.557e-05,2]
[356219420,1742087438077,-417.74835122,9.557e-05,2]
[356219421,1742087438086,-833.87572497,9.557e-05,2]
[356219422,1742087438096,-160.0,9.557e-05,2]
[356219423,1742087438106,-500.0,9.589e-05,2]
[356219424,1742087438116,-500.0,9.589e-05,2]
[356219425,1742087438126,-631.82,9.589e-05,2]
[356219426,1742087438136,-500.0,9.589e-05,2]
[356219427,1742087438145,-620.01,9.589e-05,2]
[356219428,1742087438155,-500.0,9.589e-05,2]
[356219429,1742087438164,-500.0,9.589e-05,2]
[356219430,1742087438174,-500.0,9.589e-05,2]
[356219431,1742087438184,-500.0,9.589e-05,2]
[356219432,1742087438193,-500.0,9.589e-05,2]
[356219433,1742087438203,-500.0,9.589e-05,2]
[356219434,1742087438212,-500.0,9.589e-05,2]
[356219435,1742087438221,-500.0,9.589e-05,2]
[356219436,1742087438231,-3666.2,9.589e-05,2]
[356219437,1742087438240,-3114.38,9.589e-05,2]
[356219438,1742087438250,-500.0,9.589e-05,2]
[356219439,1742087438259,-1125.76,9.589e-05,2]
[356219440,1742087438268,-500.0,9.589e-05,2]
[356219441,1742087438277,-500.0,9.589e-05,2]
[356219442,1742087438287,-500.0,9.589e-05,2]
[356219443,1742087438296,-2933.46,9.589e-05,2]
[356219444,1742087438305,-810.85,9.589e-05,2]
[356219445,1742087438315,-594.52,9.589e-05,2]
[356219446,1742087438324,-500.0,9.589e-05,2]
[356219447,1742087438334,-1283.2,9.589e-05,2]
[356219448,1742087438343,-617.68,9.589e-05,2]
[356219449,1742087438352,-500.0,9.589e-05,2]
[356219450,1742087438362,-1827.95,9.589e-05,2]
[356219452,1742087438371,-4050.31,9.589e-05,2]
[356219453,1742087438380,-1693.82,9.589e-05,2]
[356219455,1742087438390,-304.75638535,9.589e-05,2]
[356219456,1742087438399,-852.23,9.589e-05,2]
[356219458,1742087438409,-997.62,9.589e-05,2]
[356219460,1742087438420,-619.17,9.589e-05,2]
[356219462,1742087438429,-500.0,9.589e-05,2]
[356219464,1742087438438,-500.0,9.589e-05,2]
[356219466,1742087438448,-500.0,9.589e-05,2]
[356219468,1742087438457,-8422.80972477,9.589e-05,2]
[356219848,1742087552465,499.4824564,7.881e-05,2]
[356219849,1742087610770,200.0,0.0001504,120]
[356219850,1742087831368,21002.19,0.00014,30]
[356219859,1742088435204,-436.40906251,8.218e-05,2]
[356219860,1742088435232,-500.0,8.218e-05,2]
[356219861,1742088435256,-489.3896207,8.218e-05,2]
[356219862,1742088435278,-300.0,8.218e-05,2]
[356219863,1742088435299,-500.0,8.219e-05,2]
[356219864,1742088435321,-500.0,8.219e-05,2]
[356219865,1742088435343,-500.0,8.219e-05,2]
[356219866,1742088435365,-500.0,8.219e-05,2]
[356219867,1742088435387,-500.0,8.219e-05,2]
[356219868,1742088435412,-500.0,8.219e-05,2]
[356219869,1742088435436,-500.0,8.219e-05,2]
[356219870,1742088435457,-500.0,8.219e-05,2]
[356219871,1742088435480,-500.0,8.219e-05,2]
[356219872,1742088435502,-500.0,8.219e-05,2]
[356219873,1742088435525,-500.0,8.219e-05,2]
[356219874,1742088435547,-500.0,8.219e-05,2]
[356219875,1742088435568,-500.0,8.219e-05,2]
[356219876,1742088435590,-574.72,8.219e-05,2]
[356219877,1742088435611,-500.0,8.219e-05,2]
[356219878,1742088435633,-500.0,8.219e-05,2]
[356219879,1742088435654,-500.0,8.219e-05,2]
[356219880,1742088435675,-500.0,8.219e-05,2]
[356219881,1742088435696,-500.0,8.219e-05,2]
[356219882,1742088435718,-2200.1,8.219e-05,2]
[356219883,1742088435739,-500.0,8.219e-05,2]
[356219884,1742088435762,-500.0,8.219e-05,2]
[356219885,1742088435788,-500.0,8.219e-05,2]
[356219886,1742088435810,-500.0,8.219e-05,2]
[356219887,1742088435839,-500.0,8.219e-05,2]
[356219888,1742088435862,-500.0,8.219e-05,2]
[356219889,1742088435884,-608.14,8.219e-05,2]
[356219890,1742088435911,-500.0,8.219e-05,2]
[356219891,1742088435934,-962.4,8.219e-05,2]
[356219892,1742088435955,-494.95298943,8.219e-05,2]
[356219931,1742088632959,-300.0,8.218e-05,2]
[356219932,1742088632970,-232.80972795,8.219e-05,2]
[356219934,1742088638801,-267.19027205,8.219e-05,2]
[356219935,1742088638811,-647.15632918,8.219e-05,2]
[356219936,1742088638822,-500.0,8.219e-05,2]
[356219937,1742088638835,-500.0,8.219e-05,2]
[356219938,1742088638845,-844.32,8.219e-05,2]
[356219939,1742088638854,-500.0,8.219e-05,2]
[356219940,1742088638864,-500.0,8.219e-05,2]
[356219941,1742088638874,-500.0,8.219e-05,2]
[356219942,1742088638884,-500.0,8.219e-05,2]
[356219943,1742088638893,-2108.42,8.219e-05,2]
[356219944,1742088638903,-500.0,8.219e-05,2]
[356219947,1742088638913,-500.0,8.219e-05,2]
[356219948,1742088638923,-500.0,8.219e-05,2]
[356219950,1742088638932,-922.3,8.219e-05,2]
[356219951,1742088638942,-1270.37,8.219e-05,2]
[356219952,1742088638951,-500.0,8.219e-05,2]
[356219953,1742088638961,-1370.96,8.219e-05,2]
[356219954,1742088638971,-639.17,8.219e-05,2]
[356219955,1742088638980,-500.0,8.219e-05,2]
[356219956,1742088638990,-500.0,8.219e-05,2]
[356219957,1742088638999,-500.0,8.219e-05,2]
[356219958,1742088639009,-3017.11,8.219e-05,2]
[356219959,1742088639019,-748.21,8.219e-05,2]
[356219960,1742088639028,-2740.38,8.219e-05,2]
[356219961,1742088639037,-1283.48,8.219e-05,2]
[356219962,1742088639046,-5426.24143476,8.219e-05,2]
[356219967,1742088641312,-22156.60566826,8.219e-05,2]
[356219973,1742088643838,-849.87542801,8.219e-05,2]
[356219981,1742088646846,-1911.0,8.219e-05,2]
[356219986,1742088950945,500.0,7.513e-05,2]
[356219987,1742089075650,182.390709,7.513e-05,2]
[356219988,1742089076081,182.390709,7.607e-05,2]
[356219989,1742089076293,182.390709,7.701e-05,2]
[356219990,1742089076499,182.390709,7.794e-05,2]
[356219991,1742089076942,182.390709,7.888e-05,2]
[356220031,1742089832067,-589.52024672,8.218e-05,2]
[356220032,1742089832077,-181.34944522,8.218e-05,2]
[356220033,1742089832087,-300.0,8.218e-05,2]
[356220034,1742089832097,-500.0,8.219e-05,2]
[356220035,1742089832108,-500.0,8.219e-05,2]
[356220036,1742089832117,-500.0,8.219e-05,2]
[356220037,1742089832127,-500.0,8.219e-05,2]
[356220038,1742089832136,-500.0,8.219e-05,2]
[356220039,1742089832146,-500.0,8.219e-05,2]
[356220040,1742089832155,-526.2883223,8.219e-05,2]
[356220041,1742089832164,-381.11984479,8.219e-05,2]
[356220042,1742089832175,-500.0,8.219e-05,2]
[356220043,1742089832186,-500.0,8.219e-05,2]
[356220044,1742089832195,-500.0,8.219e-05,2]
[356220045,1742089832207,-515.71260374,8.219e-05,2]
[356220046,1742089832219,-513.49114373,8.219e-05,2]
[356220047,1742089832230,-287.25382295,8.219e-05,2]
[356220048,1742089832240,-500.0,8.219e-05,2]
[356220049,1742089832250,-500.0,8.219e-05,2]
[356220050,1742089832260,-520.85687327,8.219e-05,2]
[356220051,1742089832270,-500.0,8.219e-05,2]
[356220052,1742089832279,-850.51,8.219e-05,2]
[356220053,1742089832290,-500.0,8.219e-05,2]
[356220054,1742089832301,-2127.24,8.219e-05,2]
[356220056,1742089832311,-500.0,8.219e-05,2]
[356220058,1742089832321,-160.0719195,8.219e-05,2]
[356220059,1742089832332,-584.53,8.219e-05,2]
[356220060,1742089832343,-500.0,8.219e-05,2]
[356220061,1742089832353,-500.0,8.219e-05,2]
[356220062,1742089832363,-227.64462449,8.219e-05,2]
[356220063,1742089832376,-500.0,8.219e-05,2]
[356220064,1742089832386,-736.17,8.219e-05,2]
[356220065,1742089832396,-500.0,8.219e-05,2]
[356220066,1742089832405,-500.0,8.219e-05,2]
[356220067,1742089832415,-1280.08,8.219e-05,2]
[356220068,1742089832424,-500.0,8.219e-05,2]
[356220069,1742089832434,-3026.29,8.219e-05,2]
[356220070,1742089832443,-647.2,8.219e-05,2]
[356220071,1742089832451,-750.0,8.219e-05,2]
[356220072,1742089832461,-1379.95,8.219e-05,2]
[356220073,1742089832470,-500.0,8.219e-05,2]
[356220074,1742089832479,-500.0,8.219e-05,2]
[356220075,1742089832488,-34022.31,8.219e-05,2]
[356220076,1742089832498,-500.0,8.219e-05,2]
[356220077,1742089832508,-155.96537188,8.219e-05,2]
[356220078,1742089832517,-1198.42,8.219e-05,2]
[356220079,1742089832527,-1289.97,8.219e-05,2]
[356220080,1742089832537,-500.0,8.219e-05,2]
[356220081,1742089832546,-2759.92,8.219e-05,2]
[356220082,1742089832556,-500.0,8.219e-05,2]
[356220083,1742089832565,-2383.5,8.219e-05,2]
[356220084,1742089832575,-500.0,8.219e-05,2]
[356220085,1742089832585,-1771.6,8.219e-05,2]
[356220086,1742089832594,-634.18,8.219e-05,2]
[356220087,1742089832604,-516.54,8.219e-05,2]
[356220088,1742089832614,-500.0,8.219e-05,2]
[356220089,1742089832624,-500.0,8.219e-05,2]
[356220090,1742089832633,-1254.03,8.219e-05,2]
[356220091,1742089832642,-500.0,8.219e-05,2]
[356220092,1742089832652,-680.53347891,8.219e-05,2]
[356220093,1742089832661,-501.62,8.219e-05,2]
[356220094,1742089832671,-500.0,8.219e-05,2]
[356220095,1742089832680,-611.18,8.219e-05,2]
[356220096,1742089832690,-500.0,8.219e-05,2]
[356220097,1742089832699,-553.81,8.219e-05,2]
[356220098,1742089832708,-584.45,8.219e-05,2]
[356220099,1742089832718,-2752.84,8.219e-05,2]
[356220100,1742089832727,-500.0,8.219e-05,2]
[356220101,1742089832736,-168.84928442,8.219e-05,2]
[356220102,1742089832746,-2339.75,8.219e-05,2]
[356220103,1742089832756,-500.0,8.219e-05,2]
[356220104,1742089832765,-768.25690952,8.393e-05,2]
[356220105,1742089832775,-500.0,8.493e-05,2]
[356220106,1742089832784,-500.0,8.493e-05,2]
[356220107,1742089832795,-319.57861534,8.493e-05,2]
[356220108,1742089832805,-500.0,8.493e-05,2]
[356220109,1742089832816,-500.0,8.493e-05,2]
[356220110,1742089832827,-500.0,8.493e-05,2]
[356220111,1742089832836,-500.0,8.493e-05,2]
[356220112,1742089832846,-500.0,8.493e-05,2]
[356220113,1742089832856,-500.0,8.493e-05,2]
[356220114,1742089832867,-500.0,8.493e-05,2]
[356220115,1742089832879,-162.83160777,8.493e-05,2]
[356220116,1742089832889,-500.0,8.493e-05,2]
[356220117,1742089832899,-850.51,8.493e-05,2]
[356220118,1742089832908,-500.0,8.493e-05,2]
[356220119,1742089832917,-2127.24,8.493e-05,2]
[356220120,1742089832927,-500.0,8.493e-05,2]
[356220121,1742089832937,-584.53,8.493e-05,2]
[356220122,1742089832946,-500.0,8.493e-05,2]
[356220123,1742089832955,-500.0,8.493e-05,2]
[356220124,1742089832973,-500.0,8.493e-05,2]
[356220125,1742089832985,-736.17,8.493e-05,2]
[356220126,1742089832995,-500.0,8.493e-05,2]
[356220127,1742089833005,-500.0,8.493e-05,2]
[356220128,1742089833015,-1280.08,8.493e-05,2]
[356220129,1742089833025,-500.0,8.493e-05,2]
[356220130,1742089833035,-3026.29,8.493e-05,2]
[356220131,1742089833045,-647.2,8.493e-05,2]
[356220132,1742089833054,-750.0,8.493e-05,2]
[356220133,1742089833064,-1379.95,8.493e-05,2]
[356220134,1742089833074,-500.0,8.493e-05,2]
[356220135,1742089833084,-29697.829357,8.493e-05,2]
[356220136,1742089833103,-427.698,8.493e-05,2]
[356220137,1742089833153,-3896.782643,8.493e-05,2]
[356220138,1742089833162,-500.0,8.493e-05,2]
[356220139,1742089833172,-1198.42,8.493e-05,2]
[356220140,1742089833183,-1289.97,8.493e-05,2]
[356220141,1742089833193,-500.0,8.493e-05,2]
[356220142,1742089833204,-2759.92,8.493e-05,2]
[356220143,1742089833213,-500.0,8.493e-05,2]
[356220144,1742089833224,-2383.5,8.493e-05,2]
[356220145,1742089833234,-177.1349539,8.493e-05,2]
[356220146,1742089833244,-1771.6,8.493e-05,2]
[356220147,1742089833254,-634.18,8.493e-05,2]